[Event "15th Governor Cup 2019"]
[Site "Khanty-Mansiysk"]
[Date "2019.11.22"]
[Round "6.7"]
[White "Remizov, Yaroslav"]
[Black "Volkov, Sergey"]
[Result "0-1"]
[ECO "C11"]
[WhiteElo "2394"]
[BlackElo "2572"]
[Annotator "ChessBase"]
[PlyCount "126"]
[EventDate "2019.11.19"]
[EventType "swiss"]
[EventCountry "RUS"]
[SourceTitle "playchess.com"]
[Source "ChessBase"]
[SourceQuality "1"]
[TimeControl "5400+30"]

1. e4 {[%emt 0:00:00]} e6 {[%emt 0:00:00]} 2. d4 {[%emt 0:00:00]} d5 {[%emt 0:00:00]} 3. Nc3 {[%emt 0:00:00]} Nf6 {[%emt 0:00:00]} 4. e5 {[%emt 0:00:16]} Nfd7 {[%emt 0:00:00]} 5. f4 {[%emt 0:00:06]} c5 {[%emt 0:00:04]} 6. Nf3 {[%emt 0:00:06]} Nc6 {[%emt 0:00:04]} 7. Be3 {[%emt 0:00:06]} Be7 {[%emt 0:00:18]} 8. Qd2 {[%emt 0:00:18]} O-O {[%emt 0:00:32]} 9. Be2 {[%emt 0:01:43]} b6 {[%emt 0:00:16]} 10. O-O {[%emt 0:04:33]} Bb7 {[%emt 0:00:29]} 11. Nd1 {[%emt 0:14:38]} cxd4 {[%emt 0:01:06]} 12. Nxd4 {[%emt 0:00:18]} Nc5 {[%emt 0:00:15]} 13. Nf2 {[%emt 0:01:18]} Rc8 {[%emt 0:00:16]} 14. c3 {[%emt 0:01:56]} Ba6 {[%emt 0:01:53]} 15. Bxa6 {[%emt 0:10:43]} Nxa6 {[%emt 0:00:59]} 16. b4 {[%emt 0:01:11]} Nxd4 {[%emt 0:01:38]} 17. Bxd4 {[%emt 0:00:29]} Nb8 {[%emt 0:00:10]} 18. Ng4 {[%emt 0:11:12]} Nc6 {[%emt 0:02:07]} 19. f5 {[%emt 0:00:39]} Bg5 {[%emt 0:02:15]} 20. Qd3 {[%emt 0:03:56]} Nxd4 {[%emt 0:04:14]} 21. cxd4 {[%emt 0:00:22]} h5 {[%emt 0:13:47]} 22. Nf2 {[%emt 0:15:01]} exf5 {[%emt 0:01:19]} 23. Qxf5 {[%emt 0:03:19]} Rc3 {[%emt 0:04:13]} 24. Rae1 {[%emt 0:15:52]} g6 {[%emt 0:03:05]} 25. Qb1 {[%emt 0:00:03]} Be3 {[%emt 0:11:25]} 26. Kh1 {[%emt 0:00:58]} Qh4 {[%emt 0:01:34]} 27. Nd1 {[%emt 0:02:26]} Bf4 {[%emt 0:06:38]} 28. g3 {[%emt 0:00:03]} Bxg3 {[%emt 0:02:53]} 29. Re2 {[%emt 0:00:03]} Rc6 {[%emt 0:01:38]} 30. b5 {[%emt 0:03:40]} Re6 {[%emt 0:00:52]} 31. Qc1 {[%emt 0:00:48]} Bxh2 {[%emt 0:03:26]} 32. Rxh2 {[%emt 0:00:11]} Qxd4 {[%emt 0:00:03]} 33. Nf2 {[%emt 0:06:14]} Rxe5 {[%emt 0:01:02]} 34. Nh3 {[%emt 0:01:01]} Qc4 {[%emt 0:01:47]} 35. Qa1 {[%emt 0:01:58]} Rfe8 {[%emt 0:02:36]} 36. Nf4 {[%emt 0:01:56]} Rf5 {[%emt 0:11:36]} 37. Rhf2 {[%emt 0:00:07]} Re4 {[%emt 0:03:30]} 38. Ng2 {[%emt 0:00:12]} Rxf2 {[%emt 0:00:32]} 39. Rxf2 {[%emt 0:00:02]} d4 {[%emt 0:00:40]} 40. a4 {[%emt 0:01:09]} h4 {[%emt 0:02:24]} 41. Nf4 {[%emt 0:00:40]} Qb4 {[%emt 0:04:29]} 42. Nd3 {[%emt 0:00:46]} Qb3 {[%emt 0:00:44]} 43. Qf1 {[%emt 0:00:21]} Re3 {[%emt 0:01:29]} 44. Nf4 {[%emt 0:00:29]} d3 {[%emt 0:04:24]} 45. Nxg6 {[%emt 0:00:25]} d2 {[%emt 0:00:21]} 46. Ne7+ {[%emt 0:00:49]} Kf8 {[%emt 0:04:12]} 47. Rxd2 {[%emt 0:00:15]} Kxe7 {[%emt 0:01:36]} 48. Re2 {[%emt 0:00:48]} Qd5+ {[%emt 0:01:14]} 49. Kg1 {[%emt 0:00:03]} Qe5 {[%emt 0:00:45]} 50. Rxe3 {[%emt 0:00:25]} Qxe3+ {[%emt 0:00:01]} 51. Kh1 {[%emt 0:00:11]} Qe4+ {[%emt 0:00:34]} 52. Kh2 {[%emt 0:00:15]} Qxa4 {[%emt 0:01:00]} 53. Qf5 {[%emt 0:01:29]} Qa2+ {[%emt 0:00:46]} 54. Kh1 {[%emt 0:00:06]} Qe6 {[%emt 0:00:16]} 55. Qc2 {[%emt 0:00:37]} Qd5+ {[%emt 0:01:06]} 56. Kh2 {[%emt 0:00:04]} Qe5+ {[%emt 0:01:10]} 57. Kh1 {[%emt 0:00:14]} h3 {[%emt 0:00:44]} 58. Qc4 {[%emt 0:01:26]} Kf6 {[%emt 0:01:46]} 59. Qh4+ {[%emt 0:00:28]} Kg6 {[%emt 0:00:03]} 60. Qg4+ {[%emt 0:00:41]} Qg5 {[%emt 0:00:15]} 61. Qg3 {[%emt 0:00:23]} f6 {[%emt 0:01:13]} 62. Qd3+ {[%emt 0:00:08]} Kh6 {[%emt 0:00:09]} 63. Qg3 {[%emt 0:00:34]} Qd5+ {[%emt 0:00:10]} 0-1

[Event "15th Governor Cup 2019"]
[Site "Khanty-Mansiysk"]
[Date "2019.11.22"]
[Round "6.8"]
[White "Bilguun, Sumiya"]
[Black "Lugovskoy, Maxim"]
[Result "0-1"]
[ECO "C00"]
[WhiteElo "2496"]
[BlackElo "2444"]
[Annotator "ChessBase"]
[PlyCount "90"]
[EventDate "2019.11.19"]
[EventType "swiss"]
[EventCountry "RUS"]
[SourceTitle "playchess.com"]
[Source "ChessBase"]
[SourceQuality "1"]
[TimeControl "5400+30"]

1. e4 {[%emt 0:00:00]} e6 {[%emt 0:00:00]} 2. Qe2 {[%emt 0:00:00]} b6 {[%emt 0:00:58]} 3. Nf3 {[%emt 0:00:03]} Bb7 {[%emt 0:00:50]} 4. d3 {[%emt 0:05:28]} d5 {[%emt 0:01:03]} 5. exd5 {[%emt 0:02:29]} Qxd5 {[%emt 0:00:40]} 6. Nc3 {[%emt 0:00:51]} Bb4 {[%emt 0:00:30]} 7. Bd2 {[%emt 0:00:56]} Bxc3 {[%emt 0:00:04]} 8. Bxc3 {[%emt 0:06:46]} Nf6 {[%emt 0:00:07]} 9. Qe5 {[%emt 0:00:57]} Qxe5+ {[%emt 0:00:43]} 10. Nxe5 {[%emt 0:00:28]} Nd5 {[%emt 0:01:50]} 11. Bd2 {[%emt 0:01:16]} c5 {[%emt 0:06:36]} 12. a4 {[%emt 0:01:53]} Nc6 {[%emt 0:00:14]} 13. Nxc6 {[%emt 0:03:45]} Bxc6 {[%emt 0:00:07]} 14. a5 {[%emt 0:00:16]} O-O {[%emt 0:01:16]} 15. Be2 {[%emt 0:04:05]} Ne7 {[%emt 0:02:05]} 16. f3 {[%emt 0:08:23]} Rfd8 {[%emt 0:02:54]} 17. Kf2 {[%emt 0:01:50]} Nf5 {[%emt 0:05:34]} 18. Bf4 {[%emt 0:07:40]} b5 {[%emt 0:09:10]} 19. c3 {[%emt 0:06:47]} f6 {[%emt 0:08:04]} 20. a6 {[%emt 0:02:53]} e5 {[%emt 0:00:31]} 21. Bc1 {[%emt 0:01:00]} h5 {[%emt 0:02:33]} 22. Rd1 {[%emt 0:04:19]} g5 {[%emt 0:01:01]} 23. Ra5 {[%emt 0:12:41]} Rab8 {[%emt 0:02:32]} 24. g3 {[%emt 0:05:25]} Kg7 {[%emt 0:01:21]} 25. Rg1 {[%emt 0:00:39]} Kf7 {[%emt 0:03:52]} 26. f4 {[%emt 0:04:38]} exf4 {[%emt 0:02:55]} 27. gxf4 {[%emt 0:06:43]} g4 {[%emt 0:00:16]} 28. Be3 {[%emt 0:02:28]} Nxe3 {[%emt 0:00:30]} 29. Kxe3 {[%emt 0:00:01]} f5 {[%emt 0:00:20]} 30. b4 {[%emt 0:01:59]} cxb4 {[%emt 0:01:42]} 31. cxb4 {[%emt 0:00:05]} Rd6 {[%emt 0:00:06]} 32. Rc1 {[%emt 0:00:31]} Re8+ {[%emt 0:00:25]} 33. Kd2 {[%emt 0:01:05]} h4 {[%emt 0:00:08]} 34. Raa1 {[%emt 0:03:07]} Kf6 {[%emt 0:00:57]} 35. Rc5 {[%emt 0:00:31]} Ree6 {[%emt 0:00:47]} 36. Rac1 {[%emt 0:00:37]} h3 {[%emt 0:01:49]} 37. Bf1 {[%emt 0:01:46]} Be8 {[%emt 0:01:11]} 38. Re5 {[%emt 0:01:44]} Rxa6 {[%emt 0:01:46]} 39. d4 {[%emt 0:01:29]} Ra2+ {[%emt 0:00:09]} 40. Kd3 {[%emt 0:00:20]} Rxh2 {[%emt 0:01:44]} 41. d5 {[%emt 0:00:25]} Rxe5 {[%emt 0:00:08]} 42. fxe5+ {[%emt 0:00:05]} Kxe5 {[%emt 0:00:08]} 43. Re1+ {[%emt 0:00:07]} Kxd5 {[%emt 0:00:21]} 44. Rxe8 {[%emt 0:00:10]} Rf2 {[%emt 0:00:31]} 45. Be2 {[%emt 0:00:48]} h2 {[%emt 0:00:06] Kd4+ Ke5+} 0-1

[Event "15th Governor Cup 2019"]
[Site "Khanty-Mansiysk"]
[Date "2019.11.22"]
[Round "6.9"]
[White "Guseva, Marina"]
[Black "Potapov, Pavel"]
[Result "1-0"]
[ECO "A85"]
[WhiteElo "2366"]
[BlackElo "2489"]
[Annotator "ChessBase"]
[PlyCount "47"]
[EventDate "2019.11.19"]
[EventType "swiss"]
[EventCountry "RUS"]
[SourceTitle "playchess.com"]
[Source "ChessBase"]
[SourceQuality "1"]
[TimeControl "5400+30"]

1. d4 {[%emt 0:00:00]} f5 {[%emt 0:00:00]} 2. c4 {[%emt 0:00:00]} Nf6 {[%emt 0:00:00]} 3. Nc3 {[%emt 0:00:00]} d6 {[%emt 0:00:00]} 4. Bg5 {[%emt 0:00:30]} Nbd7 {[%emt 0:00:40]} 5. Qc2 {[%emt 0:00:04]} g6 {[%emt 0:01:10]} 6. O-O-O {[%emt 0:00:27]} Bg7 {[%emt 0:09:18]} 7. h4 {[%emt 0:01:09]} c6 {[%emt 0:03:27]} 8. e3 {[%emt 0:05:16]} Qc7 {[%emt 0:04:34]} 9. Be2 {[%emt 0:03:19]} h6 {[%emt 0:14:44]} 10. Bf4 {[%emt 0:09:58]} e5 {[%emt 0:04:11]} 11. Bh2 {[%emt 0:00:19]} O-O {[%emt 0:01:21]} 12. h5 {[%emt 0:03:31]} gxh5 {[%emt 0:07:58]} 13. c5 {[%emt 0:08:07]} Ng4 {[%emt 0:08:21]} 14. cxd6 {[%emt 0:01:22]} Qxd6 {[%emt 0:00:20]} 15. dxe5 {[%emt 0:03:50]} Qe7 {[%emt 0:00:18]} 16. Bg3 {[%emt 0:24:40]} Ndxe5 {[%emt 0:04:40]} 17. Nf3 {[%emt 0:01:16]} Be6 {[%emt 0:09:01]} 18. Nxe5 {[%emt 0:03:47]} Nxe5 {[%emt 0:00:32]} 19. Rxh5 {[%emt 0:00:20]} Nf7 {[%emt 0:06:03]} 20. Bh4 {[%emt 0:10:24]} Qb4 {[%emt 0:01:34]} 21. g4 {[%emt 0:03:16]} fxg4 {[%emt 0:08:56]} 22. Qg6 {[%emt 0:01:26]} Rfe8 {[%emt 0:06:44]} 23. Rd4 {[%emt 0:08:05]} Qf8 {[%emt 0:05:33]} 24. Bd3 {[%emt 0:00:03]} 1-0

[Event "15th Governor Cup 2019"]
[Site "Khanty-Mansiysk"]
[Date "2019.11.22"]
[Round "6.10"]
[White "Rozum, Ivan"]
[Black "Mochalin, Faddey"]
[Result "1-0"]
[ECO "A13"]
[WhiteElo "2593"]
[BlackElo "2188"]
[Annotator "ChessBase"]
[PlyCount "99"]
[EventDate "2019.11.19"]
[EventType "swiss"]
[EventCountry "RUS"]
[SourceTitle "playchess.com"]
[Source "ChessBase"]
[SourceQuality "1"]
[TimeControl "5400+30"]

1. c4 {[%emt 0:12:27]} e6 {[%emt 0:00:00]} 2. Nc3 {[%emt 0:00:13]} d5 {[%emt 0:00:18]} 3. e3 {[%emt 0:00:05]} Nf6 {[%emt 0:01:35]} 4. Nf3 {[%emt 0:00:08]} b6 {[%emt 0:02:07]} 5. d4 {[%emt 0:00:30]} Bb7 {[%emt 0:00:47]} 6. cxd5 {[%emt 0:00:07]} exd5 {[%emt 0:01:30]} 7. g3 {[%emt 0:00:11]} Be7 {[%emt 0:02:14]} 8. Bg2 {[%emt 0:00:07]} O-O {[%emt 0:00:28]} 9. O-O {[%emt 0:00:05]} c5 {[%emt 0:03:36]} 10. b3 {[%emt 0:01:27]} Nbd7 {[%emt 0:03:34]} 11. Bb2 {[%emt 0:00:20]} Rc8 {[%emt 0:01:52]} 12. Nh4 {[%emt 0:04:40]} Re8 {[%emt 0:09:50]} 13. Nf5 {[%emt 0:01:18]} Bf8 {[%emt 0:06:43]} 14. dxc5 {[%emt 0:01:29]} Nxc5 {[%emt 0:00:30]} 15. Qd4 {[%emt 0:04:37]} Ne6 {[%emt 0:07:08]} 16. Qh4 {[%emt 0:02:19]} Ne4 {[%emt 0:03:24]} 17. Qxd8 {[%emt 0:14:08]} Rexd8 {[%emt 0:00:44]} 18. Rfc1 {[%emt 0:02:05]} g6 {[%emt 0:03:47]} 19. Nxe4 {[%emt 0:01:13]} dxe4 {[%emt 0:00:14]} 20. Nd4 {[%emt 0:00:19]} Nc5 {[%emt 0:14:35]} 21. Rd1 {[%emt 0:04:20]} Ba6 {[%emt 0:04:44]} 22. Ba3 {[%emt 0:03:49]} Bg7 {[%emt 0:04:46]} 23. Rac1 {[%emt 0:02:35]} f5 {[%emt 0:07:38]} 24. g4 {[%emt 0:12:47]} fxg4 {[%emt 0:08:29]} 25. Bxc5 {[%emt 0:02:21]} Rxc5 {[%emt 0:03:34]} 26. Ne6 {[%emt 0:01:47]} Rxd1+ {[%emt 0:01:28]} 27. Rxd1 {[%emt 0:00:02]} Re5 {[%emt 0:01:26]} 28. Nxg7 {[%emt 0:06:20]} Re7 {[%emt 0:06:26]} 29. Ne8 {[%emt 0:03:59]} Rxe8 {[%emt 0:00:08]} 30. Rd7 {[%emt 0:00:07]} Bd3 {[%emt 0:00:53]} 31. Bf1 {[%emt 0:00:25]} Bxf1 {[%emt 0:00:29]} 32. Kxf1 {[%emt 0:00:04]} a5 {[%emt 0:00:29]} 33. Rd6 {[%emt 0:00:19]} Rc8 {[%emt 0:00:32]} 34. Rxb6 {[%emt 0:00:10]} Rc2 {[%emt 0:00:28]} 35. a4 {[%emt 0:00:39]} Rb2 {[%emt 0:00:20]} 36. Kg2 {[%emt 0:03:40]} Kg7 {[%emt 0:00:40]} 37. Rb7+ {[%emt 0:00:07]} Kg8 {[%emt 0:00:27]} 38. Rb5 {[%emt 0:05:00]} h5 {[%emt 0:00:30]} 39. Rxa5 {[%emt 0:00:13]} Rxb3 {[%emt 0:00:06]} 40. Rd5 {[%emt 0:01:50]} Rb6 {[%emt 0:00:40]} 41. Rb5 {[%emt 0:03:16]} Re6 {[%emt 0:00:25]} 42. a5 {[%emt 0:00:23]} Ra6 {[%emt 0:00:54]} 43. Kg3 {[%emt 0:02:19]} Kg7 {[%emt 0:00:14]} 44. Kf4 {[%emt 0:01:34]} Rf6+ {[%emt 0:00:24]} 45. Kg5 {[%emt 0:00:21]} Rxf2 {[%emt 0:00:53]} 46. Rb7+ {[%emt 0:00:40]} Kf8 {[%emt 0:00:07]} 47. a6 {[%emt 0:00:10]} Rf5+ {[%emt 0:00:53]} 48. Kxg6 {[%emt 0:00:21]} Ra5 {[%emt 0:00:30]} 49. a7 {[%emt 0:00:05]} Ra6+ {[%emt 0:00:30]} 50. Kxh5 {[%emt 0:00:14]} 1-0

[Event "15th Governor Cup 2019"]
[Site "Khanty-Mansiysk"]
[Date "2019.11.22"]
[Round "6.11"]
[White "Afanasiev, Nikita"]
[Black "Maltsevskaya, Aleksandra"]
[Result "1-0"]
[ECO "B40"]
[WhiteElo "2508"]
[BlackElo "2332"]
[Annotator "ChessBase"]
[PlyCount "51"]
[EventDate "2019.11.19"]
[EventType "swiss"]
[EventCountry "RUS"]
[SourceTitle "playchess.com"]
[Source "ChessBase"]
[SourceQuality "1"]
[TimeControl "5400+30"]

1. e4 {[%emt 0:10:31]} c5 {[%emt 0:00:00]} 2. Nf3 {[%emt 0:00:05]} e6 {[%emt 0:00:49]} 3. d4 {[%emt 0:00:06]} cxd4 {[%emt 0:00:06]} 4. Nxd4 {[%emt 0:00:03]} Nf6 {[%emt 0:00:14]} 5. Nc3 {[%emt 0:00:07]} Nc6 {[%emt 0:00:04]} 6. Nxc6 {[%emt 0:00:21]} bxc6 {[%emt 0:00:08]} 7. e5 {[%emt 0:00:04]} Nd5 {[%emt 0:00:07]} 8. Ne4 {[%emt 0:00:06]} Qa5+ {[%emt 0:04:36]} 9. c3 {[%emt 0:04:26]} Qc7 {[%emt 0:06:42]} 10. f4 {[%emt 0:01:49]} Qb6 {[%emt 0:01:01]} 11. c4 {[%emt 0:13:40]} Bb4+ {[%emt 0:03:04]} 12. Ke2 {[%emt 0:00:08]} Ba6 {[%emt 0:04:33]} 13. Kf3 {[%emt 0:00:18]} f5 {[%emt 0:00:12]} 14. exf6 {[%emt 0:01:24]} Nxf6 {[%emt 0:00:12]} 15. Be3 {[%emt 0:00:29]} c5 {[%emt 0:13:25]} 16. Nxf6+ {[%emt 0:11:33]} gxf6 {[%emt 0:04:16]} 17. a3 {[%emt 0:00:04]} Ba5 {[%emt 0:00:16]} 18. b4 {[%emt 0:00:09]} Qc6+ {[%emt 0:05:49]} 19. Kf2 {[%emt 0:00:14]} cxb4 {[%emt 0:00:08]} 20. Qh5+ {[%emt 0:00:16]} Ke7 {[%emt 0:03:46]} 21. Qxa5 {[%emt 0:00:32]} d6 {[%emt 0:00:44]} 22. axb4 {[%emt 0:00:17]} Bb7 {[%emt 0:00:08]} 23. b5 {[%emt 0:03:04]} Qe4 {[%emt 0:02:50]} 24. c5 {[%emt 0:01:54]} dxc5 {[%emt 0:00:45]} 25. Qc7+ {[%emt 0:00:27]} Ke8 {[%emt 0:00:12]} 26. Bxc5 {[%emt 0:00:08]} 1-0

[Event "15th Governor Cup 2019"]
[Site "Khanty-Mansiysk"]
[Date "2019.11.22"]
[Round "6.12"]
[White "Lysenko, Margarita"]
[Black "Khanin, Semen"]
[Result "0-1"]
[ECO "E20"]
[WhiteElo "2243"]
[BlackElo "2503"]
[Annotator "ChessBase"]
[PlyCount "86"]
[EventDate "2019.11.19"]
[EventType "swiss"]
[EventCountry "RUS"]
[SourceTitle "playchess.com"]
[Source "ChessBase"]
[SourceQuality "1"]
[TimeControl "5400+30"]

1. d4 {[%emt 0:00:00]} Nf6 {[%emt 0:00:00]} 2. c4 {[%emt 0:00:00]} e6 {[%emt 0:00:00]} 3. Nc3 {[%emt 0:00:00]} Bb4 {[%emt 0:00:00]} 4. f3 {[%emt 0:00:02]} c5 {[%emt 0:00:04]} 5. d5 {[%emt 0:00:09]} d6 {[%emt 0:00:57]} 6. e4 {[%emt 0:00:52]} b5 {[%emt 0:00:05]} 7. Bd2 {[%emt 0:03:13]} a6 {[%emt 0:01:53]} 8. a4 {[%emt 0:13:15]} bxc4 {[%emt 0:02:08]} 9. Bxc4 {[%emt 0:00:32]} Qe7 {[%emt 0:07:10]} 10. Nge2 {[%emt 0:04:50]} Nbd7 {[%emt 0:00:13]} 11. dxe6 {[%emt 0:23:54]} fxe6 {[%emt 0:00:26]} 12. O-O {[%emt 0:03:00]} Ne5 {[%emt 0:04:24]} 13. Ba2 {[%emt 0:01:31]} c4 {[%emt 0:05:01]} 14. Be3 {[%emt 0:05:24]} Bb7 {[%emt 0:01:07]} 15. Bb1 {[%emt 0:05:18]} O-O {[%emt 0:00:51]} 16. h3 {[%emt 0:00:57]} Rac8 {[%emt 0:07:37]} 17. f4 {[%emt 0:01:36]} Ned7 {[%emt 0:00:41]} 18. Ng3 {[%emt 0:00:40]} Nc5 {[%emt 0:21:08]} 19. Bc2 {[%emt 0:13:12]} Qc7 20. Kh2 {[%emt 0:04:22]} Rcd8 {[%emt 0:07:12]} 21. Bxc5 {[%emt 0:02:58]} Bxc5 {[%emt 0:00:31]} 22. Nh5 {[%emt 0:06:27]} Qf7 {[%emt 0:04:16]} 23. Nxf6+ {[%emt 0:00:24]} Qxf6 {[%emt 0:00:03]} 24. Qe2 {[%emt 0:01:05]} d5 {[%emt 0:00:42]} 25. e5 {[%emt 0:01:26]} Qh6 {[%emt 0:02:29]} 26. Qg4 {[%emt 0:00:52]} d4 {[%emt 0:05:11]} 27. Ne4 {[%emt 0:02:24]} Be7 {[%emt 0:00:03]} 28. Nf6+ {[%emt 0:00:59]} Bxf6 {[%emt 0:00:49]} 29. Qxe6+ {[%emt 0:00:09]} Kh8 {[%emt 0:02:01]} 30. exf6 {[%emt 0:00:13]} d3 {[%emt 0:00:04]} 31. Bd1 {[%emt 0:00:56]} Qxf6 {[%emt 0:00:42]} 32. Qxf6 {[%emt 0:01:26]} Rxf6 {[%emt 0:00:30]} 33. Rc1 {[%emt 0:00:54]} Bd5 {[%emt 0:02:11]} 34. Rc3 {[%emt 0:02:30]} Rb8 {[%emt 0:01:24]} 35. Bf3 {[%emt 0:01:24]} Bg8 {[%emt 0:00:15]} 36. Rf2 {[%emt 0:00:31]} Rfb6 {[%emt 0:00:34]} 37. Be4 {[%emt 0:00:33]} Rxb2 {[%emt 0:00:18]} 38. Rxb2 {[%emt 0:00:26]} Rxb2 {[%emt 0:00:03]} 39. Bxd3 {[%emt 0:00:24]} cxd3 {[%emt 0:00:04]} 40. Rxd3 {[%emt 0:00:09]} Rb4 {[%emt 0:00:03]} 41. a5 {[%emt 0:00:20]} Ra4 {[%emt 0:00:13]} 42. Rd8 {[%emt 0:00:36]} Rxf4 {[%emt 0:01:00]} 43. Rd6 {[%emt 0:00:07]} Rf6 {[%emt 0:00:03]} 0-1

[Event "15th Governor Cup 2019"]
[Site "Khanty-Mansiysk"]
[Date "2019.11.22"]
[Round "6.13"]
[White "Pogosyan, Stefan"]
[Black "Safin, Robert"]
[Result "1-0"]
[ECO "B20"]
[WhiteElo "2455"]
[BlackElo "2182"]
[Annotator "ChessBase"]
[PlyCount "97"]
[EventDate "2019.11.19"]
[EventType "swiss"]
[EventCountry "RUS"]
[SourceTitle "playchess.com"]
[Source "ChessBase"]
[SourceQuality "1"]
[TimeControl "5400+30"]

1. e4 {[%emt 0:00:00]} c5 {[%emt 0:00:00]} 2. Ne2 {[%emt 0:00:00]} Nc6 {[%emt 0:00:00]} 3. g3 {[%emt 0:00:00]} g6 {[%emt 0:00:00]} 4. Bg2 {[%emt 0:00:07]} Bg7 {[%emt 0:00:00]} 5. c3 {[%emt 0:00:07]} e5 {[%emt 0:04:22]} 6. d3 {[%emt 0:00:36]} d6 {[%emt 0:00:13]} 7. Be3 {[%emt 0:00:39]} Nf6 {[%emt 0:05:07]} 8. h3 {[%emt 0:00:38]} O-O {[%emt 0:00:23]} 9. O-O {[%emt 0:04:10]} h6 {[%emt 0:05:54]} 10. Nd2 {[%emt 0:10:47]} b6 {[%emt 0:00:56]} 11. f4 {[%emt 0:02:11]} Qe7 {[%emt 0:01:37]} 12. f5 {[%emt 0:06:23]} Ba6 {[%emt 0:03:43]} 13. c4 {[%emt 0:02:13]} Nd4 {[%emt 0:02:07]} 14. g4 {[%emt 0:00:20]} Nd7 {[%emt 0:05:12]} 15. Nc3 {[%emt 0:03:04]} Bb7 {[%emt 0:01:48]} 16. Nd5 {[%emt 0:09:43]} Bxd5 {[%emt 0:00:24]} 17. exd5 {[%emt 0:00:08]} Kh7 {[%emt 0:02:54]} 18. Ne4 {[%emt 0:01:00]} Nf6 {[%emt 0:06:16]} 19. Qd2 {[%emt 0:11:53]} gxf5 {[%emt 0:10:39]} 20. gxf5 {[%emt 0:01:39]} Rg8 {[%emt 0:02:30]} 21. Qf2 {[%emt 0:11:45]} Nxe4 {[%emt 0:02:33]} 22. Bxe4 {[%emt 0:01:24]} Qf6 {[%emt 0:01:57]} 23. Kh2 {[%emt 0:02:52]} Bf8 {[%emt 0:00:07]} 24. Rg1 {[%emt 0:03:26]} Be7 {[%emt 0:00:54]} 25. Rg4 {[%emt 0:08:58]} Rxg4 {[%emt 0:03:27]} 26. hxg4 {[%emt 0:00:06]} Kg7 {[%emt 0:05:13]} 27. Kh3 {[%emt 0:01:40]} Rh8 {[%emt 0:01:40]} 28. Rh1 {[%emt 0:01:57]} Kf8 {[%emt 0:01:34]} 29. Kg3 {[%emt 0:00:58]} Qg7 {[%emt 0:01:19]} 30. Rh5 {[%emt 0:00:15]} Bg5 {[%emt 0:05:54]} 31. Bxg5 {[%emt 0:01:21]} hxg5 {[%emt 0:00:03]} 32. f6 {[%emt 0:00:24]} Qg8 {[%emt 0:00:01]} 33. Qh2 {[%emt 0:00:15]} Rxh5 {[%emt 0:00:05]} 34. Qxh5 {[%emt 0:00:06]} Ne2+ {[%emt 0:08:57]} 35. Kf2 {[%emt 0:01:57]} Nf4 {[%emt 0:00:10]} 36. Qh6+ {[%emt 0:00:03]} Ke8 {[%emt 0:00:01]} 37. Qg7 {[%emt 0:00:20]} Qf8 {[%emt 0:00:19]} 38. Bf5 {[%emt 0:00:32]} Ng6 {[%emt 0:00:51]} 39. Bxg6 {[%emt 0:02:00]} fxg6 {[%emt 0:00:06]} 40. Qxg6+ {[%emt 0:00:09]} Qf7 {[%emt 0:02:13]} 41. Qxg5 {[%emt 0:00:35]} Qh7 {[%emt 0:00:02]} 42. Qh5+ {[%emt 0:00:40]} Qxh5 {[%emt 0:00:04]} 43. gxh5 {[%emt 0:00:04]} Kf7 {[%emt 0:00:04]} 44. Kf3 {[%emt 0:00:03]} Kxf6 {[%emt 0:00:06]} 45. Kg4 {[%emt 0:00:12]} a6 {[%emt 0:00:24]} 46. a4 {[%emt 0:01:05]} Kg7 {[%emt 0:00:17]} 47. Kf5 {[%emt 0:00:06]} Kf7 {[%emt 0:00:03]} 48. h6 {[%emt 0:00:34]} b5 {[%emt 0:00:10]} 49. axb5 {[%emt 0:00:10]} 1-0